fUST/lending_fUST_20240720
["ID","MTS","AMOUNT","RATE_DAILY","PERIOD"]
[332726929,1721485842674,-764.63,0.00016438,2]
[332726930,1721485842683,-4464.76,0.00016438,2]
[332726931,1721485842693,-500.0,0.00016438,2]
[332726932,1721485842702,-500.0,0.00016438,2]
[332726933,1721485842711,-254.88943529,0.00016438,2]
[332726934,1721485842721,-1527.59,0.00016438,2]
[332726935,1721485842730,-623.08,0.00016438,2]
[332726936,1721485842740,-1111.9,0.00016438,2]
[332726937,1721485842750,-342.45378004,0.00016438,2]
[332726938,1721485842760,-500.0,0.00016438,2]
[332726939,1721485842771,-1397.88,0.00016438,2]
[332726940,1721485842780,-500.0,0.00016438,2]
[332726941,1721485842790,-500.0,0.00016438,2]
[332726942,1721485842800,-500.0,0.00016438,2]
[332726943,1721485842810,-500.0,0.00016438,2]
[332726944,1721485842820,-500.0,0.00016438,2]
[332726945,1721485842829,-500.0,0.00016438,2]
[332726946,1721485842839,-500.0,0.00016438,2]
[332726947,1721485842848,-583.63,0.00016438,2]
[332726948,1721485842858,-501.58706672,0.00016438,2]
[332726949,1721485842867,-500.0,0.00016438,2]
[332726950,1721485842877,-500.0,0.00016438,2]
[332726951,1721485842887,-500.0,0.00016438,2]
[332726952,1721485842896,-500.0,0.00016438,2]
[332726953,1721485842906,-500.0,0.00016438,2]
[332726954,1721485842918,-500.0,0.00016438,2]
[332726955,1721485842928,-500.0,0.00016438,2]
[332726956,1721485842937,-500.0,0.00016438,2]
[332726958,1721485842947,-500.0,0.00016438,2]
[332726960,1721485842958,-500.0,0.00016438,2]
[332726962,1721485842967,-500.0,0.00016438,2]
[332726965,1721485842979,-500.0,0.00016438,2]
[332726967,1721485842988,-500.0,0.00016438,2]
[332726969,1721485842998,-500.0,0.00016438,2]
[332726971,1721485843009,-500.0,0.00016438,2]
[332726973,1721485843019,-455.75116135,0.00016438,2]
[332726975,1721485843030,-500.0,0.00016438,2]
[332726977,1721485843040,-814.94,0.00016438,2]
[332726979,1721485843050,-558.9,0.00016438,2]
[332726981,1721485843059,-500.0,0.00016438,2]
[332726983,1721485843069,-500.0,0.00016438,2]
[332726985,1721485843079,-500.0,0.00016438,2]
[332726987,1721485843089,-1134.42,0.00016438,2]
[332726989,1721485843098,-500.0,0.00016438,2]
[332726991,1721485843107,-500.0,0.00016438,2]
[332726993,1721485843116,-500.0,0.00016438,2]
[332726995,1721485843126,-503.304429,0.00016438,2]
[332726997,1721485843136,-500.0,0.00016438,2]
[332726998,1721485843145,-538.51,0.00016438,2]
[332726999,1721485843155,-570.52,0.00016438,2]
[332727000,1721485843165,-554.45,0.00016438,2]
[332727001,1721485843174,-500.0,0.00016438,2]
[332727002,1721485843183,-577.29,0.00016438,2]
[332727003,1721485843194,-500.0,0.00016438,2]
[332727004,1721485843204,-697.43,0.00016438,2]
[332727005,1721485843213,-500.0,0.00016438,2]
[332727006,1721485843223,-526.07354938,0.00016438,2]
[332727007,1721485843232,-500.0,0.00016438,2]
[332727008,1721485843244,-500.0,0.00016438,2]
[332727009,1721485843254,-912.65,0.00016438,2]
[332727010,1721485843265,-500.0,0.00016438,2]
[332727011,1721485843274,-534.16,0.00016438,2]
[332727012,1721485843284,-500.0,0.00016438,2]
[332727013,1721485843294,-1825.28,0.00016438,2]
[332727014,1721485843304,-500.0,0.00016438,2]
[332727015,1721485843315,-500.0,0.00016438,2]
[332727016,1721485843324,-500.0,0.00016438,2]
[332727017,1721485843334,-500.0,0.00016438,2]
[332727018,1721485843344,-501.71905467,0.00016438,2]
[332727019,1721485843353,-500.0,0.00016438,2]
[332727020,1721485843362,-898.49,0.00016438,2]
[332727021,1721485843372,-500.0,0.00016438,2]
[332727022,1721485843383,-500.0,0.00016438,2]
[332727023,1721485843393,-500.0,0.00016438,2]
[332727024,1721485843403,-500.0,0.00016438,2]
[332727025,1721485843413,-2845.95,0.00016438,2]
[332727026,1721485843423,-278.260626,0.00016438,2]
[332727027,1721485843433,-504.38908166,0.00016438,2]
[332727028,1721485843442,-278.260626,0.00016438,2]
[332727029,1721485843452,-278.260626,0.00016438,2]
[332727030,1721485843462,-278.260626,0.00016438,2]
[332727031,1721485843471,-500.0,0.00016438,2]
[332727032,1721485843480,-278.260626,0.00016438,2]
[332727033,1721485843490,-278.260626,0.00016438,2]
[332727034,1721485843500,-278.260626,0.00016438,2]
[332727035,1721485843509,-278.260626,0.00016438,2]
[332727036,1721485843519,-278.260626,0.00016438,2]
[332727037,1721485843528,-278.260626,0.00016438,2]
[332727038,1721485843538,-1806.43,0.00016438,2]
[332727039,1721485843548,-500.0,0.00016438,2]
[332727040,1721485843558,-500.0,0.00016438,2]
[332727041,1721485843568,-500.0,0.00016438,2]
[332727042,1721485843578,-502.29979491,0.00016438,2]
[332727043,1721485843588,-1284.47,0.00016438,2]
[332727044,1721485843598,-517.77,0.00016438,2]
[332727045,1721485843608,-505.35435945,0.00016438,2]
[332727046,1721485843618,-1813.58,0.00016438,2]
[332727047,1721485843627,-500.0,0.00016438,2]
[332727048,1721485843636,-500.0,0.00016438,2]
[332727049,1721485843646,-500.0,0.00016438,2]
[332727050,1721485843656,-306.37698052,0.00016438,2]
[332727066,1721486477696,850.12,0.00014002,2]
[332727067,1721486609960,154.77557542,9.999e-05,2]
[332727069,1721486639939,154.77557542,9.999e-05,2]
[332727073,1721486666791,206.59571105,0.0001212,2]
[332727075,1721486686498,2186.77263791,0.0001212,2]
[332727077,1721486706067,250.0,0.00013969,2]
[332727081,1721486783877,585.05264289,9.999e-05,2]
[332727083,1721486793572,726.55100361,9.999e-05,2]
[332727085,1721486836406,478.19183116,9.999e-05,2]
[332727086,1721486841977,726.55100361,0.0001212,2]
[332727087,1721486845945,600.0568444,9.999e-05,2]
[332727089,1721486861471,168.27432711,9.999e-05,2]
[332727090,1721486883449,600.0568444,0.0001212,2]
[332727091,1721486886059,372.86455023,0.0001212,2]
[332727093,1721486892054,925.24454399,9.999e-05,2]
[332727094,1721486897009,262.32646256,0.0001212,2]
[332727096,1721486916946,309.45844772,9.999e-05,2]
[332727097,1721486921832,155.39443755,9.999e-05,2]
[332727098,1721486925541,155.14715315,9.999e-05,2]
[332727099,1721486937193,155.97882791,9.999e-05,2]
[332727100,1721486945309,155.85698865,9.999e-05,2]
[332727101,1721486947227,403.19686744,9.999e-05,2]
[332727102,1721486950115,-250.0,0.00014008,2]
[332727103,1721486950138,-250.0,0.00014046,2]
[332727104,1721486950162,-250.0,0.00014084,2]
[332727105,1721486950184,-250.0,0.00014122,2]
[332727106,1721486950214,-250.0,0.00014161,2]
[332727107,1721486950238,-250.0,0.00014199,2]
[332727108,1721486950261,-250.0,0.00014237,2]
[332727109,1721486950282,-187.5,0.00014247,2]
[332727110,1721486950304,-250.0,0.00014276,2]
[332727111,1721486950326,-250.0,0.00014314,2]
[332727112,1721486950348,-250.0,0.00014352,2]
[332727113,1721486950370,-300.0,0.00014379,2]
[332727114,1721486950391,-300.0,0.00014379,2]
[332727115,1721486950413,-450.0,0.0001438,2]
[332727116,1721486950435,-500.0,0.0001438,2]
[332727117,1721486950457,-500.0,0.0001438,2]
[332727118,1721486950478,-500.0,0.0001438,2]
[332727119,1721486950503,-500.0,0.0001438,2]
[332727120,1721486950523,-500.0,0.0001438,2]
[332727121,1721486950545,-500.0,0.0001438,2]
[332727122,1721486950567,-500.0,0.0001438,2]
[332727123,1721486950587,-264.08558091,0.0001438,2]
[332727124,1721486950609,-500.0,0.0001438,2]
[332727125,1721486950631,-500.0,0.0001438,2]
[332727126,1721486950652,-500.0,0.0001438,2]
[332727127,1721486950673,-500.0,0.0001438,2]
[332727128,1721486950694,-500.0,0.0001438,2]
[332727129,1721486950715,-230.44075946,0.0001438,2]
[332727130,1721486950738,-500.0,0.0001438,2]
[332727131,1721486950759,-500.0,0.0001438,2]
[332727132,1721486950781,-226.6466391,0.0001438,2]
[332727133,1721486950804,-500.0,0.0001438,2]
[332727134,1721486950829,-500.0,0.0001438,2]
[332727135,1721486950851,-500.0,0.0001438,2]
[332727136,1721486950872,-500.0,0.0001438,2]
[332727137,1721486950894,-500.0,0.0001438,2]
[332727138,1721486950915,-500.0,0.0001438,2]
[332727139,1721486950937,-500.0,0.0001438,2]
[332727140,1721486950961,-500.0,0.0001438,2]
[332727141,1721486950986,-500.0,0.0001438,2]
[332727142,1721486951011,-500.0,0.0001438,2]
[332727143,1721486951033,-160.95846215,0.0001438,2]
[332727144,1721486951055,-500.0,0.0001438,2]
[332727145,1721486951077,-500.0,0.0001438,2]
[332727146,1721486951100,-24900.0,0.00014381,2]
[332727147,1721486951124,-250.0,0.00014391,2]
[332727148,1721486951147,-329.422406,0.00014409,2]
[332727149,1721486951171,-250.0,0.00014429,2]
[332727150,1721486951195,-250.0,0.00014467,2]
[332727151,1721486951216,-250.0,0.00014505,2]
[332727152,1721486951239,-250.0,0.00014544,2]
[332727153,1721486951261,-250.0,0.00014582,2]
[332727154,1721486951282,-250.0,0.0001462,2]
[332727155,1721486951304,-250.0,0.00014659,2]
[332727156,1721486951325,-532.22950115,0.00014691,2]
[332727157,1721486951345,-1306.5388351,0.00014691,2]
[332727158,1721486951366,-250.0,0.00014697,2]
[332727166,1721486955139,204.57366757,0.00013946,2]
[332727167,1721486959495,155.31248135,9.999e-05,2]
[332727169,1721486977007,155.68015214,9.999e-05,2]
[332727170,1721486985733,402.60952539,0.0001212,2]
[332727171,1721486997975,941.37701693,9.999e-05,2]
[332727172,1721487005588,156.06630466,0.0001212,2]
[332727174,1721487006937,159.95554966,9.999e-05,2]
[332727175,1721487016513,245.0,9.999e-05,2]
[332727176,1721487021932,159.95554966,9.999e-05,2]
[332727180,1721487027281,154.82138466,9.999e-05,2]
[332727205,1721487032711,-808.96672094,0.00015,2]
[332727206,1721487032722,-408.62137003,0.00015,2]
[332727207,1721487032731,-782.38763503,0.00015,2]
[332727244,1721487040647,-517.88427357,0.00014999,2]
[332727245,1721487040658,-525.1829599,0.00014999,2]
[332727246,1721487040669,-20501.66431196,0.00015,2]
[332727247,1721487040678,-359.0675837,0.00015333,2]
[332727248,1721487040688,-2556.60373424,0.00015608,2]
[332727249,1721487040698,-300.0,0.00015609,2]
[332727250,1721487040707,-2781.12266784,0.0001561,2]
[332727251,1721487040719,-4787.99779946,0.0001561,2]
[332727252,1721487040727,-1945.47989268,0.00015646,2]
[332727253,1721487040737,-500.0,0.000157,2]
[332727254,1721487040747,-500.0,0.000157,2]
[332727255,1721487040757,-506.80672949,0.000157,2]
[332727256,1721487040767,-369.90607191,0.000157,2]
[332727258,1721487040776,-287.38393456,0.000157,2]
[332727260,1721487040785,-266.9732573,0.000157,2]
[332727262,1721487040795,-500.0,0.000157,2]
[332727263,1721487040806,-500.0,0.000157,2]
[332727264,1721487040815,-500.0,0.000157,2]
[332727265,1721487040823,-500.0,0.000157,2]
[332727266,1721487040832,-500.0,0.000157,2]
[332727267,1721487040842,-500.0,0.000157,2]
[332727268,1721487040854,-500.0,0.000157,2]
[332727269,1721487040863,-500.0,0.000157,2]
[332727270,1721487040872,-500.0,0.000157,2]
[332727271,1721487040882,-500.0,0.000157,2]
[332727272,1721487040892,-500.0,0.000157,2]
[332727273,1721487040902,-500.0,0.000157,2]
[332727274,1721487040913,-500.0,0.000157,2]
[332727275,1721487040923,-500.0,0.000157,2]
[332727276,1721487040933,-500.0,0.000157,2]
[332727277,1721487040943,-500.0,0.000157,2]
[332727278,1721487040952,-241.43657314,0.000157,2]
[332727279,1721487040961,-500.0,0.000157,2]
[332727280,1721487040970,-500.0,0.000157,2]
[332727281,1721487040980,-500.0,0.000157,2]
[332727282,1721487040989,-582.44594297,0.000157,2]
[332727283,1721487040997,-500.0,0.000157,2]
[332727284,1721487041006,-500.0,0.000157,2]
[332727285,1721487041015,-500.0,0.000157,2]
[332727286,1721487041025,-500.0,0.000157,2]
[332727287,1721487041034,-500.0,0.000157,2]
[332727288,1721487041044,-500.0,0.000157,2]
[332727289,1721487041054,-500.0,0.000157,2]
[332727290,1721487041063,-200.0,0.000157,2]
[332727291,1721487041072,-500.0,0.000157,2]
[332727292,1721487041082,-2000.88893258,0.00015701,2]
[332727293,1721487041096,-44333.54418502,0.00015701,2]
[332727294,1721487041107,-5513.05891957,0.00015708,2]
[332727295,1721487041117,-1500.0,0.00015708,2]
[332727296,1721487041127,-1179.78916348,0.00015708,2]
[332727297,1721487041138,-1628.34155116,0.00015708,2]
[332727298,1721487041148,-180.23802632,0.00015708,2]
[332727299,1721487041159,-533.61474575,0.00015708,2]
[332727300,1721487041168,-339.95305168,0.00015708,2]
[332727301,1721487041178,-848.26931223,0.00015708,2]
[332727302,1721487041188,-199.83157053,0.00015708,2]
[332727303,1721487041200,-156.60839645,0.00015708,2]
[332727304,1721487041211,-34993.58166061,0.00015709,2]
[332727305,1721487041219,-341.5888685,0.0001571,2]
[332727306,1721487041229,-1107.54053113,0.0001571,2]
[332727307,1721487041239,-430.43474169,0.00015712,2]
[332727395,1721487048963,-156.60839645,0.00015708,2]
[332727396,1721487048974,-22.52810428,0.00015712,2]
[332727397,1721487048984,-452.96284597,0.00015712,2]
[332727398,1721487048995,-154.77557542,0.00015744,2]
[332727399,1721487049004,-1114.61307478,0.00015751,2]
[332727400,1721487049454,941.37701693,0.0001212,2]
[332727401,1721487050029,180.23802632,9.999e-05,2]
[332727402,1721487051257,500.61107229,0.0001212,2]
[332727405,1721487065498,102.08840641,0.0001212,2]
[332727406,1721487065524,1625.32837522,0.0001212,2]
[332727408,1721487077395,1628.34155116,0.0001212,2]
[332727409,1721487082468,299.43459274,0.0001212,2]
[332727410,1721487082490,300.0,0.0001212,2]
[332727411,1721487082515,3819.7270805,0.0001212,2]
[332727412,1721487088344,564.66516524,0.0001212,2]
[332727413,1721487088364,283.60414699,0.0001212,2]
[332727414,1721487090729,156.65338959,0.0001212,2]
[332727415,1721487101341,1108.03027653,0.0001212,2]
[332727416,1721487101366,391.96972347,0.0001212,2]
[332727418,1721487131463,252.76970306,0.00013907,2]
[332727419,1721487145856,848.26931223,9.999e-05,2]
[332727420,1721487151663,452.96284597,9.999e-05,2]
[332727421,1721487155441,157.74,0.00010959,2]
[332727422,1721487158888,1483.37734283,0.00025,120]
[332727423,1721487167952,296.40876308,9.999e-05,2]
[332727424,1721487185232,162.85283202,9.999e-05,2]
[332727425,1721487189915,341.5888685,9.999e-05,2]
[332727426,1721487191950,1522.76336035,0.0001212,2]
[332727429,1721487208177,452.96284597,0.0001212,2]
[332727430,1721487208829,886.94388172,9.999e-05,2]
[332727431,1721487209757,204.85960485,9.999e-05,2]
[332727432,1721487216403,848.26931223,0.0001212,2]
[332727433,1721487219109,633.2037781,9.999e-05,2]
[332727434,1721487221618,154.77557542,9.999e-05,2]
[332727435,1721487223020,220.22655659,9.999e-05,2]
[332727436,1721487223322,1500.0,0.0001212,2]
[332727437,1721487227501,404.21603118,9.999e-05,2]
[332727438,1721487236417,428.30567769,0.0001212,2]
[332727439,1721487257157,452.96284597,0.0001212,2]
[332727440,1721487258882,391.263034,0.00013754,2]
[332727441,1721487259751,500.46422317,0.00012119,2]
[332727442,1721487270071,250.0,0.00013857,2]
[332727443,1721487270297,250.0,0.00013895,2]
[332727444,1721487270537,250.0,0.00013933,2]
[332727445,1721487270859,250.0,0.00013971,2]
[332727446,1721487273005,6236.4309668,0.00013754,2]
[332727448,1721487321509,404.21603118,9.999e-05,2]
[332727449,1721487324184,489.72759559,9.999e-05,2]
[332727450,1721487336505,404.21603118,9.999e-05,2]
[332727451,1721487338850,848.26931223,9.999e-05,2]
[332727452,1721487339617,309.32177094,9.999e-05,2]
[332727453,1721487362023,154.77557542,9.999e-05,2]
[332727454,1721487378868,929.92689206,0.0001212,2]
[332727456,1721487384011,404.21603118,0.0001212,2]
[332727457,1721487385259,3000.0,0.00013699,2]
[332727458,1721487410510,154.77557542,0.0001212,2]
[332727459,1721487436666,452.96284597,9.999e-05,2]
[332727460,1721487456434,359.0675837,0.00013494,2]
[332727461,1721487501983,270.0173171,0.00013534,2]
[332727462,1721487508785,163.36263634,9.999e-05,4]
[332727463,1721487521626,196.20580808,9.999e-05,2]
[332727464,1721487553760,320.16742447,0.0001212,2]
[332727465,1721487569124,196.20580808,0.0001212,2]
[332727467,1721487615342,250.0,0.00013387,2]
[332727468,1721487639080,24900.0,0.00013387,2]
[332727469,1721487662453,547.3958726,0.00013387,2]
[332727470,1721487676634,196.20580808,9.999e-05,2]
[332727471,1721487690173,251.31725499,9.999e-05,2]
[332727473,1721487836331,500.53764773,0.0001212,2]
[332727474,1721487837695,250.0,0.00013593,2]
[332727475,1721487837924,250.0,0.00013631,2]
[332727476,1721487838148,250.0,0.00013668,2]
[332727477,1721487838400,250.0,0.00013705,2]
[332727478,1721487838620,250.0,0.00013742,2]
[332727479,1721487838856,250.0,0.0001378,2]
[332727480,1721487839140,250.0,0.00013817,2]
[332727481,1721487839362,250.0,0.00013854,2]
[332727482,1721487839585,250.0,0.00013892,2]
[332727483,1721487840006,250.0,0.00013929,2]
[332727484,1721487840270,250.0,0.00013966,2]
[332727485,1721487850630,1586.9735268,0.00013699,2]
[332727487,1721487947759,269.778665,0.00013699,2]
[332727489,1721487973080,188.9463852,0.00013414,2]
[332727490,1721488001024,757.5143261,0.00013699,2]
[332727491,1721488014218,205.72385594,9.999e-05,2]
[332727494,1721488077662,392.3203692,9.999e-05,2]
[332727496,1721488123518,392.21006976,0.0001212,2]
[332727504,1721488160163,-250.0,0.00014003,2]
[332727505,1721488160189,-250.0,0.00014041,2]
[332727506,1721488160215,-250.0,0.00014078,2]
[332727507,1721488160240,-250.0,0.00014115,2]
[332727508,1721488160264,-250.0,0.00014153,2]
[332727509,1721488160286,-250.0,0.0001419,2]
[332727510,1721488160309,-250.0,0.00014227,2]
[332727511,1721488160331,-750.0,0.00014247,2]
[332727512,1721488160353,-250.0,0.00014264,2]
[332727513,1721488160375,-250.0,0.00014302,2]
[332727514,1721488160397,-525.1829599,0.0001469,2]
[332727515,1721488160418,-300.0,0.0001469,2]
[332727516,1721488160439,-300.0,0.0001469,2]
[332727517,1721488160463,-1628.34155116,0.00014691,2]
[332727518,1721488160486,-2850.6054014,0.00014701,2]
[332727519,1721488160507,-6576.14727308,0.00014733,2]
[332727520,1721488161772,3436.87281446,0.00014691,2]
[332727521,1721488165136,-4968.50987345,0.00014691,2]
[332727522,1721488169129,-15052.4735463,0.00014691,2]
[332727524,1721488180674,154.9094073,0.00014,2]
[332727528,1721488212255,250.0,0.00013824,2]
[332727552,1721488232636,-586.68,0.00014801,2]
[332727553,1721488232647,-894.92480599,0.00014802,2]
[332727621,1721488240969,-5681.22246705,0.00014802,2]
[332727622,1721488240979,-21342.41879059,0.0001482,2]
[332727631,1721488244635,-0.00093384,0.0001482,2]
[332727632,1721488246716,-305.47,0.0001482,2]
[332727637,1721488286458,526.75209491,0.0001469,2]
[332727639,1721488298590,2561.31937941,0.00013824,2]
[332727640,1721488298619,22338.68062059,0.00013824,2]
[332727648,1721488396193,198.34876041,9.999e-05,2]
[332727649,1721488417095,373.23036883,9.999e-05,2]
[332727652,1721488445343,663.36487868,9.999e-05,2]
[332727657,1721488460347,663.36487868,9.999e-05,2]
[332727659,1721488487755,572.695445,0.00013805,2]
[332727660,1721488502505,163.6,0.00024,60]
[332727661,1721488506807,663.36487868,0.0001212,2]
[332727663,1721488535221,187.65,0.00024,60]
[332727664,1721488566120,195.55243159,9.999e-05,2]
[332727665,1721488682518,250.0,0.0001385,2]
[332727666,1721488682729,250.0,0.00013888,2]
[332727667,1721488682944,250.0,0.00013926,2]
[332727668,1721488683180,250.0,0.00013964,2]
[332727669,1721488684009,287.3476314,0.0001212,2]
[332727670,1721488723224,154.80649189,0.0001212,2]
[332727673,1721488905637,24900.0,0.00013343,2]
[332727674,1721488913111,523.03987634,9.999e-05,2]
[332727675,1721488986533,755.29066942,0.0001212,2]
[332727676,1721489066040,286.347722,0.00013699,2]
[332727678,1721489088537,500.0,0.0002501,120]
[332727679,1721489098328,500.0,0.0002501,120]
[332727680,1721489109463,500.0,0.0002501,120]
[332727681,1721489131988,295.42522594,0.0002501,120]
[332727687,1721489192750,165.55587378,9.999e-05,2]
[332727691,1721489244260,154.77557542,0.0001212,2]
[332727692,1721489247132,533.21232689,9.999e-05,2]
[332727695,1721489284338,250.0,0.00013532,2]
[332727696,1721489284554,250.0,0.00013569,2]
[332727697,1721489284777,250.0,0.00013606,2]
[332727698,1721489285015,250.0,0.00013643,2]
[332727699,1721489285457,250.0,0.0001368,2]
[332727700,1721489285676,250.0,0.00013717,2]
[332727701,1721489285921,250.0,0.00013755,2]
[332727702,1721489286145,250.0,0.00013792,2]
[332727703,1721489286564,250.0,0.00013829,2]
[332727704,1721489286766,250.0,0.00013866,2]
[332727705,1721489287010,250.0,0.00013903,2]
[332727706,1721489287240,250.0,0.0001394,2]
[332727707,1721489287487,250.0,0.00013977,2]
[332727708,1721489290257,154.77557542,0.0001212,2]
[332727712,1721489303097,501.52,0.00013124,2]
[332727716,1721489329860,245.0,9.999e-05,2]
[332727718,1721489358173,-250.0,0.00014014,2]
[332727719,1721489358197,-250.0,0.00014052,2]
[332727720,1721489358221,-250.0,0.00014089,2]
[332727721,1721489358245,-250.0,0.00014126,2]
[332727722,1721489358269,-250.0,0.00014163,2]
[332727723,1721489358292,-250.0,0.000142,2]
[332727724,1721489358316,-250.0,0.00014237,2]
[332727725,1721489358338,-750.0,0.00014247,2]
[332727726,1721489358361,-344.51689188,0.00014525,2]
[332727727,1721489358385,-3293.94355324,0.00014581,2]
[332727728,1721489358410,-300.0,0.00014599,2]
[332727729,1721489358433,-300.0,0.00014599,2]
[332727730,1721489358457,-4314.24039039,0.00014656,2]
[332727731,1721489358479,-277.90945275,0.00014667,2]
[332727732,1721489358501,-348.77204299,0.00014667,2]
[332727733,1721489358523,-176.75719991,0.00014667,2]
[332727734,1721489358545,-338.05094105,0.00014667,2]
[332727735,1721489358566,-500.0,0.00014667,2]
[332727736,1721489358591,-500.0,0.00014667,2]
[332727737,1721489358613,-500.0,0.00014667,2]
[332727738,1721489358635,-500.0,0.00014667,2]
[332727739,1721489358662,-557.53746095,0.00014667,2]
[332727740,1721489358683,-201.16875419,0.00014679,2]
[332727741,1721489358705,-500.0,0.00014679,2]
[332727742,1721489358726,-258.93425034,0.00014679,2]
[332727743,1721489358747,-500.0,0.00014679,2]
[332727744,1721489358770,-500.0,0.00014679,2]
[332727745,1721489358792,-500.0,0.00014679,2]
[332727746,1721489358813,-270.52149543,0.00014679,2]
[332727747,1721489358835,-500.0,0.00014679,2]
[332727748,1721489358856,-500.0,0.00014679,2]
[332727749,1721489358879,-500.0,0.00014679,2]
[332727750,1721489358901,-500.0,0.00014679,2]
[332727751,1721489358925,-500.0,0.00014679,2]
[332727752,1721489358948,-454.72498379,0.00014679,2]
[332727753,1721489358971,-500.0,0.00014679,2]
[332727754,1721489358993,-500.0,0.00014679,2]
[332727755,1721489359016,-500.0,0.00014679,2]
[332727756,1721489359039,-500.0,0.00014679,2]
[332727757,1721489359062,-500.0,0.00014679,2]
[332727758,1721489359085,-500.0,0.00014679,2]
[332727759,1721489359107,-442.99248356,0.00014679,2]
[332727760,1721489359145,-500.0,0.00014679,2]
[332727761,1721489359171,-500.0,0.00014679,2]
[332727762,1721489359198,-500.0,0.00014679,2]
[332727763,1721489359223,-500.0,0.00014679,2]
[332727764,1721489359248,-500.0,0.00014679,2]
[332727765,1721489359274,-500.0,0.00014679,2]
[332727766,1721489359298,-500.0,0.00014679,2]
[332727767,1721489359323,-198.88959721,0.00014679,2]
[332727768,1721489359349,-500.0,0.00014679,2]
[332727769,1721489359374,-500.0,0.00014679,2]
[332727770,1721489359401,-500.0,0.00014679,2]
[332727771,1721489359428,-500.0,0.00014679,2]
[332727772,1721489359468,-500.0,0.00014679,2]
[332727773,1721489359493,-500.0,0.00014679,2]
[332727774,1721489359517,-500.0,0.00014679,2]
[332727775,1721489359541,-500.0,0.00014679,2]
[332727776,1721489359565,-500.0,0.00014679,2]
[332727777,1721489359590,-500.0,0.00014679,2]
[332727778,1721489359616,-250.0,0.00014679,2]
[332727779,1721489359643,-44017.7114617,0.0001468,2]
[332727780,1721489359668,-31325.7822495,0.0001468,5]
[332727781,1721489359693,-44017.7114617,0.0001468,2]
[332727782,1721489359718,-44017.7114617,0.00014681,2]
[332727783,1721489359742,-4314.24039039,0.00014684,2]
[332727784,1721489359765,-1686.66,0.00014689,2]
[332727785,1721489359787,-46508.53,0.0001469,2]
[332727786,1721489359809,-3054.03,0.0001469,2]
[332727787,1721489359830,-3270.74,0.0001469,2]
[332727788,1721489359853,-500.0,0.0001469,2]
[332727789,1721489359877,-2039.09,0.0001469,2]
[332727790,1721489359899,-1002.74,0.0001469,2]
[332727791,1721489359922,-10351.79,0.0001469,2]
[332727792,1721489359945,-2406.18,0.0001469,2]
[332727793,1721489359969,-3168.77,0.0001469,2]
[332727794,1721489359992,-3379.4,0.0001469,2]
[332727795,1721489360013,-5437.28,0.0001469,2]
[332727796,1721489360043,-2488.39,0.0001469,2]
[332727797,1721489360094,-13595.83,0.0001469,2]
[332727798,1721489360147,-3777.23,0.0001469,2]
[332727799,1721489360210,-5510.67108053,0.00014691,2]
[332727800,1721489360264,-555.92528546,0.00014691,2]
[332727801,1721489363223,-300.0,0.00014679,2]
[332727802,1721489363248,-3226.79,0.0001469,2]
[332727803,1721489363272,-944.07471454,0.00014691,2]
[332727804,1721489363294,-27841.26755863,0.00014691,2]